[Event "Titled Tuesday Blitz June 14 Late 2022"]
[White "Swiercz, Dariusz"]
[Black "Al-Tarboush, Ward"]
[WhiteFideId "1126881"]
[BlackFideId "7601450"]
[WhiteElo "2627"]
[BlackElo "2249"]
[Result "1-0"]
[Round "08"]
[TimeControl "180+1"]
[Date "2022.06.14"]
[WhiteClock "0:01:33"]
[BlackClock "0:00:03"]

1. e4 {[%clk 0:03:00]}  b6 {[%clk 0:02:01]} 2. d4 {[%clk 0:02:54]}  Bb7 {[%clk 0:02:02]} 3. Bd3 {[%clk 0:02:54]}  e6 {[%clk 0:02:02]} 4. Nf3 {[%clk 0:02:54]}  c5 {[%clk 0:02:02]} 5. c3 {[%clk 0:02:53]}  Nf6 {[%clk 0:01:59]} 6. Qe2 {[%clk 0:02:52]}  Be7 {[%clk 0:02:00]} 7. O-O {[%clk 0:02:52]}  Nc6 {[%clk 0:01:58]} 8. a3 {[%clk 0:02:48]}  Na5 {[%clk 0:01:58]} 9. Nbd2 {[%clk 0:02:47]}  c4 {[%clk 0:01:57]} 10. Bc2 {[%clk 0:02:47]}  Qc7 {[%clk 0:01:50]} 11. Re1 {[%clk 0:02:45]}  d6 {[%clk 0:01:49]} 12. e5 {[%clk 0:02:32]}  Nd5 {[%clk 0:01:39]} 13. Ne4 {[%clk 0:02:30]}  dxe5 {[%clk 0:01:37]} 14. dxe5 {[%clk 0:02:22]}  O-O-O {[%clk 0:01:37]} 15. Bg5 {[%clk 0:02:19]}  f6 {[%clk 0:01:15]} 16. exf6 {[%clk 0:02:18]}  gxf6 {[%clk 0:01:16]} 17. Nxf6 {[%clk 0:02:04]}  Bxf6 {[%clk 0:00:46]} 18. Qxe6+ {[%clk 0:02:02]}  Kb8 {[%clk 0:00:16]} 19. Bxf6 {[%clk 0:02:02]}  Rd6 {[%clk 0:00:16]} 20. Qxd6 {[%clk 0:01:52]}  Qxd6 {[%clk 0:00:17]} 21. Be5 {[%clk 0:01:53]}  Qxe5 {[%clk 0:00:17]} 22. Rxe5 {[%clk 0:01:52]}  Nf4 {[%clk 0:00:18]} 23. Rae1 {[%clk 0:01:47]}  Bc6 {[%clk 0:00:11]} 24. Nd4 {[%clk 0:01:34]}  Nb3 {[%clk 0:00:03]} 25. Nxc6+ {[%clk 0:01:33]} 1-0


[Site "https://www.chess.com"]

[Event "Titled Tuesday Blitz June 14 Late 2022"]
[White "Terry, Renato"]
[Black "Acosta, Pablo Ismael"]
[WhiteFideId "3803457"]
[BlackFideId "124311"]
[WhiteElo "2577"]
[BlackElo "2313"]
[Result "1-0"]
[Round "08"]
[TimeControl "180+1"]
[Date "2022.06.14"]
[WhiteClock "0:00:42"]
[BlackClock "0:00:05"]

1. d4 {[%clk 0:03:00]}  d5 {[%clk 0:02:59]} 2. Nf3 {[%clk 0:03:00]}  Nf6 {[%clk 0:02:58]} 3. c4 {[%clk 0:03:00]}  c6 {[%clk 0:02:58]} 4. Nc3 {[%clk 0:03:00]}  Bf5 {[%clk 0:02:46]} 5. cxd5 {[%clk 0:02:53]}  cxd5 {[%clk 0:02:44]} 6. Qb3 {[%clk 0:02:53]}  Qb6 {[%clk 0:02:27]} 7. Nxd5 {[%clk 0:02:47]}  Nxd5 {[%clk 0:02:25]} 8. Qxd5 {[%clk 0:02:48]}  e6 {[%clk 0:02:25]} 9. Qb3 {[%clk 0:02:44]}  Nc6 {[%clk 0:02:08]} 10. e3 {[%clk 0:02:35]}  Bb4+ {[%clk 0:01:49]} 11. Bd2 {[%clk 0:02:34]}  O-O {[%clk 0:01:32]} 12. a3 {[%clk 0:02:27]}  Bxd2+ {[%clk 0:01:19]} 13. Nxd2 {[%clk 0:02:28]}  Rfd8 {[%clk 0:00:48]} 14. Qxb6 {[%clk 0:02:21]}  axb6 {[%clk 0:00:48]} 15. Bb5 {[%clk 0:02:22]}  e5 {[%clk 0:00:40]} 16. Bxc6 {[%clk 0:02:18]}  bxc6 {[%clk 0:00:41]} 17. dxe5 {[%clk 0:02:18]}  Ra5 {[%clk 0:00:21]} 18. Nf3 {[%clk 0:01:51]}  Be4 {[%clk 0:00:13]} 19. Rc1 {[%clk 0:01:27]}  Rb5 {[%clk 0:00:11]} 20. b4 {[%clk 0:01:20]}  c5 {[%clk 0:00:09]} 21. bxc5 {[%clk 0:01:18]}  bxc5 {[%clk 0:00:10]} 22. O-O {[%clk 0:01:18]}  Ra8 {[%clk 0:00:11]} 23. Rc3 {[%clk 0:01:11]}  Bxf3 {[%clk 0:00:11]} 24. gxf3 {[%clk 0:01:12]}  g5 {[%clk 0:00:11]} 25. Rd1 {[%clk 0:01:06]}  Rba5 {[%clk 0:00:11]} 26. Rd5 {[%clk 0:01:05]}  Rxa3 {[%clk 0:00:11]} 27. Rxa3 {[%clk 0:01:04]}  Rxa3 {[%clk 0:00:11]} 28. Rxc5 {[%clk 0:01:05]}  Kg7 {[%clk 0:00:11]} 29. Kg2 {[%clk 0:01:04]}  Kg6 {[%clk 0:00:11]} 30. Rc6+ {[%clk 0:01:02]}  Kg7 {[%clk 0:00:10]} 31. Kg3 {[%clk 0:00:59]}  h6 {[%clk 0:00:10]} 32. h4 {[%clk 0:00:58]}  Ra4 {[%clk 0:00:10]} 33. hxg5 {[%clk 0:00:50]}  hxg5 {[%clk 0:00:11]} 34. f4 {[%clk 0:00:50]}  gxf4+ {[%clk 0:00:10]} 35. exf4 {[%clk 0:00:51]}  Ra3+ {[%clk 0:00:10]} 36. Kg4 {[%clk 0:00:50]}  Ra2 {[%clk 0:00:11]} 37. f3 {[%clk 0:00:50]}  Rf2 {[%clk 0:00:09]} 38. f5 {[%clk 0:00:50]}  Re2 {[%clk 0:00:09]} 39. Kf4 {[%clk 0:00:50]}  Re1 {[%clk 0:00:10]} 40. Rc7 {[%clk 0:00:50]}  Kg8 {[%clk 0:00:09]} 41. Re7 {[%clk 0:00:49]}  Kf8 {[%clk 0:00:09]} 42. f6 {[%clk 0:00:50]}  Kg8 {[%clk 0:00:09]} 43. Kf5 {[%clk 0:00:49]}  Re3 {[%clk 0:00:09]} 44. f4 {[%clk 0:00:49]}  Kf8 {[%clk 0:00:10]} 45. Ra7 {[%clk 0:00:44]}  Kg8 {[%clk 0:00:10]} 46. Ra8+ {[%clk 0:00:43]}  Kh7 {[%clk 0:00:10]} 47. Rf8 {[%clk 0:00:44]}  Rg3 {[%clk 0:00:07]} 48. Rxf7+ {[%clk 0:00:44]}  Kh8 {[%clk 0:00:08]} 49. Ra7 {[%clk 0:00:44]}  Rg8 {[%clk 0:00:04]} 50. f7 {[%clk 0:00:42]}  Rf8 {[%clk 0:00:04]} 51. Kf6 {[%clk 0:00:43]}  Kh7 {[%clk 0:00:05]} 52. Ra1 {[%clk 0:00:42]} 1-0


[Site "https://www.chess.com"]

[Event "Titled Tuesday Blitz June 14 Late 2022"]
[White "Tica, Sven"]
[Black "Oparin, Grigoriy"]
[WhiteFideId "14526948"]
[BlackFideId "24125890"]
[WhiteElo "2346"]
[BlackElo "2639"]
[Result "1-0"]
[Round "08"]
[TimeControl "180+1"]
[Date "2022.06.14"]
[WhiteClock "0:02:05"]
[BlackClock "0:01:06"]

1. d4 {[%clk 0:03:00]}  Nf6 {[%clk 0:03:00]} 2. Nc3 {[%clk 0:02:59]}  g6 {[%clk 0:03:01]} 3. Bf4 {[%clk 0:02:52]}  d5 {[%clk 0:03:00]} 4. e3 {[%clk 0:02:52]}  Bg7 {[%clk 0:03:00]} 5. Be2 {[%clk 0:02:46]}  O-O {[%clk 0:03:00]} 6. h4 {[%clk 0:02:46]}  h5 {[%clk 0:02:53]} 7. Nf3 {[%clk 0:02:44]}  Bg4 {[%clk 0:02:50]} 8. Ne5 {[%clk 0:02:43]}  Bxe2 {[%clk 0:02:50]} 9. Qxe2 {[%clk 0:02:43]}  Nbd7 {[%clk 0:02:50]} 10. O-O-O {[%clk 0:02:42]}  c6 {[%clk 0:02:49]} 11. f3 {[%clk 0:02:42]}  Nxe5 {[%clk 0:02:45]} 12. Bxe5 {[%clk 0:02:42]}  Qd7 {[%clk 0:02:45]} 13. Rdg1 {[%clk 0:02:41]}  Rae8 {[%clk 0:02:43]} 14. g4 {[%clk 0:02:41]}  hxg4 {[%clk 0:02:43]} 15. fxg4 {[%clk 0:02:42]}  Nh7 {[%clk 0:02:44]} 16. Bxg7 {[%clk 0:02:40]}  Kxg7 {[%clk 0:02:44]} 17. g5 {[%clk 0:02:40]}  e5 {[%clk 0:02:42]} 18. Qh2 {[%clk 0:02:30]}  exd4 {[%clk 0:02:26]} 19. h5 {[%clk 0:02:18]}  Kg8 {[%clk 0:02:26]} 20. exd4 {[%clk 0:02:17]}  Qf5 {[%clk 0:02:18]} 21. hxg6 {[%clk 0:02:17]}  Qxg6 {[%clk 0:02:19]} 22. Ne2 {[%clk 0:02:10]}  Rxe2 {[%clk 0:01:10]} 23. Qxe2 {[%clk 0:02:11]}  Qe4 {[%clk 0:01:05]} 24. Qxe4 {[%clk 0:02:07]}  dxe4 {[%clk 0:01:06]} 25. g6 {[%clk 0:02:08]}  Nf6 {[%clk 0:01:06]} 26. g7 {[%clk 0:02:05]} 1-0


[Site "https://www.chess.com"]

[Event "Titled Tuesday Blitz June 14 Late 2022"]
[White "Vasquez Schroeder, Rodrigo"]
[Black "Bringas Gomez, Artai"]
[WhiteFideId "3400042"]
[BlackFideId "24534064"]
[WhiteElo "2567"]
[BlackElo "1988"]
[Result "1-0"]
[Round "08"]
[TimeControl "180+1"]
[Date "2022.06.14"]
[WhiteClock "0:01:45"]
[BlackClock "0:00:20"]

1. e4 {[%clk 0:03:00]}  c6 {[%clk 0:02:43]} 2. d4 {[%clk 0:02:58]}  d5 {[%clk 0:02:44]} 3. exd5 {[%clk 0:02:58]}  cxd5 {[%clk 0:02:45]} 4. c4 {[%clk 0:02:59]}  Nf6 {[%clk 0:02:45]} 5. Nc3 {[%clk 0:03:00]}  Nc6 {[%clk 0:02:45]} 6. Bg5 {[%clk 0:02:59]}  Be6 {[%clk 0:02:45]} 7. a3 {[%clk 0:02:59]}  g6 {[%clk 0:02:37]} 8. Be2 {[%clk 0:02:59]}  Bg7 {[%clk 0:02:38]} 9. Bf3 {[%clk 0:02:59]}  Qb6 {[%clk 0:01:55]} 10. cxd5 {[%clk 0:02:49]}  Bxd5 {[%clk 0:01:52]} 11. Nxd5 {[%clk 0:02:25]}  Nxd5 {[%clk 0:01:52]} 12. Ne2 {[%clk 0:02:22]}  Rd8 {[%clk 0:01:50]} 13. O-O {[%clk 0:02:16]}  O-O {[%clk 0:01:49]} 14. Nc3 {[%clk 0:02:11]}  Nxc3 {[%clk 0:01:11]} 15. bxc3 {[%clk 0:02:10]}  Rd7 {[%clk 0:01:04]} 16. Qa4 {[%clk 0:02:03]}  Nb8 {[%clk 0:00:46]} 17. Bf4 {[%clk 0:01:58]}  Qa6 {[%clk 0:00:44]} 18. Qxa6 {[%clk 0:01:52]}  Nxa6 {[%clk 0:00:45]} 19. Rab1 {[%clk 0:01:50]}  b6 {[%clk 0:00:45]} 20. a4 {[%clk 0:01:46]}  Rc8 {[%clk 0:00:42]} 21. Rfc1 {[%clk 0:01:46]}  Rc4 {[%clk 0:00:23]} 22. Be2 {[%clk 0:01:45]}  Rxa4 {[%clk 0:00:20]} 23. Bb5 {[%clk 0:01:45]} 1-0


[Site "https://www.chess.com"]

[Event "Titled Tuesday Blitz June 14 Late 2022"]
[White "Xiong, Jeffery"]
[Black "Ivic, Velimir"]
[WhiteFideId "2047640"]
[BlackFideId "950122"]
[WhiteElo "2714"]
[BlackElo "2610"]
[Result "1-0"]
[Round "08"]
[TimeControl "180+1"]
[Date "2022.06.14"]
[WhiteClock "0:00:10"]
[BlackClock "0:00:02"]

1. e4 {[%clk 0:03:00]}  c5 {[%clk 0:02:59]} 2. Nf3 {[%clk 0:03:01]}  Nc6 {[%clk 0:03:00]} 3. Nc3 {[%clk 0:03:01]}  e5 {[%clk 0:02:59]} 4. Bc4 {[%clk 0:03:02]}  Be7 {[%clk 0:03:00]} 5. d3 {[%clk 0:03:02]}  d6 {[%clk 0:03:01]} 6. a4 {[%clk 0:03:03]}  Nf6 {[%clk 0:03:01]} 7. Bg5 {[%clk 0:03:03]}  O-O {[%clk 0:03:02]} 8. Bxf6 {[%clk 0:03:04]}  Bxf6 {[%clk 0:03:02]} 9. Nd5 {[%clk 0:03:04]}  Be6 {[%clk 0:03:00]} 10. c3 {[%clk 0:03:01]}  Rc8 {[%clk 0:02:58]} 11. Qd2 {[%clk 0:02:58]}  h6 {[%clk 0:02:53]} 12. O-O {[%clk 0:02:56]}  Be7 {[%clk 0:02:52]} 13. b4 {[%clk 0:02:55]}  cxb4 {[%clk 0:02:42]} 14. cxb4 {[%clk 0:02:56]}  Bg5 {[%clk 0:02:37]} 15. Qb2 {[%clk 0:02:45]}  Ne7 {[%clk 0:02:31]} 16. Qb3 {[%clk 0:02:26]}  Ng6 {[%clk 0:02:23]} 17. d4 {[%clk 0:02:24]}  exd4 {[%clk 0:01:51]} 18. Nxd4 {[%clk 0:02:25]}  Ne5 {[%clk 0:01:51]} 19. Nxe6 {[%clk 0:01:53]}  fxe6 {[%clk 0:01:50]} 20. Ne3 {[%clk 0:01:54]}  d5 {[%clk 0:01:32]} 21. Be2 {[%clk 0:01:22]}  Bxe3 {[%clk 0:01:29]} 22. Qxe3 {[%clk 0:01:23]}  d4 {[%clk 0:01:29]} 23. Qg3 {[%clk 0:01:23]}  Qd6 {[%clk 0:01:24]} 24. f4 {[%clk 0:01:22]}  Nc6 {[%clk 0:01:22]} 25. e5 {[%clk 0:01:23]}  Qxb4 {[%clk 0:01:22]} 26. Qg6 {[%clk 0:01:18]}  Qb3 {[%clk 0:00:29]} 27. Bd3 {[%clk 0:01:09]}  Ne7 {[%clk 0:00:28]} 28. Qh7+ {[%clk 0:01:09]}  Kf7 {[%clk 0:00:29]} 29. Rab1 {[%clk 0:01:10]}  Qd5 {[%clk 0:00:25]} 30. Be4 {[%clk 0:01:10]}  Qc5 {[%clk 0:00:21]} 31. Rxb7 {[%clk 0:01:09]}  d3+ {[%clk 0:00:20]} 32. Kh1 {[%clk 0:01:10]}  Rc7 {[%clk 0:00:15]} 33. Rb5 {[%clk 0:00:41]}  Qf2 {[%clk 0:00:13]} 34. Bxd3 {[%clk 0:00:41]}  Qe3 {[%clk 0:00:05]} 35. Rbb1 {[%clk 0:00:23]}  Rd8 {[%clk 0:00:05]} 36. Be4 {[%clk 0:00:22]}  Rc4 {[%clk 0:00:05]} 37. Rbe1 {[%clk 0:00:22]}  Qd2 {[%clk 0:00:02]} 38. f5 {[%clk 0:00:22]}  exf5 {[%clk 0:00:02]} 39. Bxf5 {[%clk 0:00:22]}  Rf4 {[%clk 0:00:02]} 40. Bd3 {[%clk 0:00:13]}  Rxd3 {[%clk 0:00:01]} 41. Rxf4+ {[%clk 0:00:13]}  Ke6 {[%clk 0:00:02]} 42. Rff1 {[%clk 0:00:10]} 1-0


[Site "https://www.chess.com"]

[Event "Titled Tuesday Blitz June 14 Late 2022"]
[White "Zakhartsov, Vladimir"]
[Black "Guz, Ari"]
[WhiteFideId "4145097"]
[BlackFideId "2825759"]
[WhiteElo "2490"]
[BlackElo "1913"]
[Result "0-1"]
[Round "08"]
[TimeControl "180+1"]
[Date "2022.06.14"]
[WhiteClock "0:00:10"]
[BlackClock "0:00:11"]

1. e4 {[%clk 0:03:00]}  c5 {[%clk 0:02:57]} 2. Nf3 {[%clk 0:02:58]}  e6 {[%clk 0:02:57]} 3. d3 {[%clk 0:02:56]}  d5 {[%clk 0:02:54]} 4. Nbd2 {[%clk 0:02:55]}  Nf6 {[%clk 0:02:54]} 5. g3 {[%clk 0:02:55]}  Be7 {[%clk 0:02:52]} 6. Bg2 {[%clk 0:02:56]}  O-O {[%clk 0:02:52]} 7. O-O {[%clk 0:02:56]}  b5 {[%clk 0:02:52]} 8. e5 {[%clk 0:02:49]}  Nfd7 {[%clk 0:02:52]} 9. Re1 {[%clk 0:02:48]}  Nc6 {[%clk 0:02:52]} 10. Nf1 {[%clk 0:02:42]}  a5 {[%clk 0:02:51]} 11. h4 {[%clk 0:02:42]}  Ba6 {[%clk 0:02:47]} 12. Bf4 {[%clk 0:02:41]}  b4 {[%clk 0:02:46]} 13. Ne3 {[%clk 0:02:31]}  Qb6 {[%clk 0:02:28]} 14. Ng5 {[%clk 0:02:25]}  Bxg5 {[%clk 0:02:17]} 15. hxg5 {[%clk 0:02:23]}  Rfd8 {[%clk 0:02:14]} 16. Ng4 {[%clk 0:02:12]}  Ne7 {[%clk 0:02:10]} 17. Nf6+ {[%clk 0:02:08]}  gxf6 {[%clk 0:02:05]} 18. gxf6 {[%clk 0:02:09]}  Ng6 {[%clk 0:02:05]} 19. Qh5 {[%clk 0:02:07]}  Kh8 {[%clk 0:02:04]} 20. Bg5 {[%clk 0:00:52]}  Rg8 {[%clk 0:01:58]} 21. f4 {[%clk 0:00:50]}  c4+ {[%clk 0:01:55]} 22. Kh2 {[%clk 0:00:50]}  Ndf8 {[%clk 0:01:49]} 23. dxc4 {[%clk 0:00:47]}  Bxc4 {[%clk 0:01:45]} 24. Rh1 {[%clk 0:00:38]}  Rc8 {[%clk 0:01:34]} 25. Kh3 {[%clk 0:00:36]}  Qf2 {[%clk 0:01:13]} 26. Rh2 {[%clk 0:00:34]}  Qxc2 {[%clk 0:00:57]} 27. Bf3 {[%clk 0:00:32]}  Qd3 {[%clk 0:00:49]} 28. Rah1 {[%clk 0:00:29]}  Bb5 {[%clk 0:00:37]} 29. Be2 {[%clk 0:00:24]}  Qf5+ {[%clk 0:00:34]} 30. Kg2 {[%clk 0:00:11]}  Qe4+ {[%clk 0:00:20]} 31. Bf3 {[%clk 0:00:04]}  Rc2+ {[%clk 0:00:20]} 32. Kh3 {[%clk 0:00:04]}  Rxh2+ {[%clk 0:00:20]} 33. Rxh2 {[%clk 0:00:04]}  Bf1+ {[%clk 0:00:20]} 34. Bg2 {[%clk 0:00:03]}  Bxg2+ {[%clk 0:00:20]} 35. Rxg2 {[%clk 0:00:04]}  Qf5+ {[%clk 0:00:20]} 36. Kh2 {[%clk 0:00:04]}  Nd7 {[%clk 0:00:18]} 37. Qh6 {[%clk 0:00:04]}  Ndf8 {[%clk 0:00:18]} 38. Qh5 {[%clk 0:00:04]}  d4 {[%clk 0:00:18]} 39. Qd1 {[%clk 0:00:03]}  h6 {[%clk 0:00:18]} 40. Bxh6 {[%clk 0:00:03]}  Nh7 {[%clk 0:00:18]} 41. Qxd4 {[%clk 0:00:02]}  Qh5+ {[%clk 0:00:19]} 42. Kg1 {[%clk 0:00:02]}  Qxh6 {[%clk 0:00:19]} 43. Qd7 {[%clk 0:00:02]}  Qf8 {[%clk 0:00:19]} 44. Rh2 {[%clk 0:00:02]}  Qc5+ {[%clk 0:00:19]} 45. Kg2 {[%clk 0:00:02]}  Nf8 {[%clk 0:00:19]} 46. Qd3 {[%clk 0:00:02]}  Qd5+ {[%clk 0:00:16]} 47. Qxd5 {[%clk 0:00:02]}  exd5 {[%clk 0:00:16]} 48. Kf3 {[%clk 0:00:02]}  Ne6 {[%clk 0:00:17]} 49. Rd2 {[%clk 0:00:03]}  d4 {[%clk 0:00:17]} 50. f5 {[%clk 0:00:03]}  Neg5+ {[%clk 0:00:16]} 51. Kf4 {[%clk 0:00:04]}  Rd8 {[%clk 0:00:17]} 52. Rd3 {[%clk 0:00:03]}  Kg8 {[%clk 0:00:17]} 53. a3 {[%clk 0:00:03]}  bxa3 {[%clk 0:00:16]} 54. bxa3 {[%clk 0:00:03]}  Rd5 {[%clk 0:00:14]} 55. g4 {[%clk 0:00:03]}  Kf8 {[%clk 0:00:14]} 56. Rb3 {[%clk 0:00:03]}  Ke8 {[%clk 0:00:14]} 57. Rb8+ {[%clk 0:00:03]}  Rd8 {[%clk 0:00:15]} 58. Rb2 {[%clk 0:00:03]}  d3 {[%clk 0:00:15]} 59. Rd2 {[%clk 0:00:04]}  Rd4+ {[%clk 0:00:15]} 60. Ke3 {[%clk 0:00:04]}  Rd5 {[%clk 0:00:14]} 61. Rxd3 {[%clk 0:00:03]}  Rxe5+ {[%clk 0:00:14]} 62. Kf4 {[%clk 0:00:03]}  Re4+ {[%clk 0:00:15]} 63. Kg3 {[%clk 0:00:04]}  Nxf6 {[%clk 0:00:15]} 64. Rd6 {[%clk 0:00:03]}  Rxg4+ {[%clk 0:00:15]} 65. Kh2 {[%clk 0:00:04]}  Nge4 {[%clk 0:00:16]} 66. Ra6 {[%clk 0:00:03]}  Rf4 {[%clk 0:00:14]} 67. Rxa5 {[%clk 0:00:03]}  Kf8 {[%clk 0:00:15]} 68. a4 {[%clk 0:00:03]}  Ng5 {[%clk 0:00:15]} 69. Kg3 {[%clk 0:00:04]}  Rg4+ {[%clk 0:00:15]} 70. Kf2 {[%clk 0:00:04]}  Rf4+ {[%clk 0:00:15]} 71. Ke3 {[%clk 0:00:04]}  Re4+ {[%clk 0:00:15]} 72. Kd3 {[%clk 0:00:05]}  Re7 {[%clk 0:00:13]} 73. Ra6 {[%clk 0:00:04]}  Nge4 {[%clk 0:00:12]} 74. a5 {[%clk 0:00:04]}  Nc5+ {[%clk 0:00:12]} 75. Kc4 {[%clk 0:00:03]}  Nxa6 {[%clk 0:00:13]} 76. Kb5 {[%clk 0:00:04]}  Nc7+ {[%clk 0:00:13]} 77. Kb6 {[%clk 0:00:05]}  Nfd5+ {[%clk 0:00:14]} 78. Kc6 {[%clk 0:00:05]}  Re5 {[%clk 0:00:14]} 79. f6 {[%clk 0:00:06]}  Re6+ {[%clk 0:00:14]} 80. Kb7 {[%clk 0:00:06]}  Rxf6 {[%clk 0:00:14]} 81. a6 {[%clk 0:00:07]}  Nxa6 {[%clk 0:00:13]} 82. Ka8 {[%clk 0:00:07]}  Nac7+ {[%clk 0:00:12]} 83. Kb7 {[%clk 0:00:08]}  Ke7 {[%clk 0:00:12]} 84. Ka7 {[%clk 0:00:09]}  Kd7 {[%clk 0:00:11]} 85. Kb7 {[%clk 0:00:10]}  Rb6+ {[%clk 0:00:11]} 86. Ka7 {[%clk 0:00:10]}  Ne6 {[%clk 0:00:10]} 87. Ka8 {[%clk 0:00:10]}  Kc6 {[%clk 0:00:10]} 88. Ka7 {[%clk 0:00:10]}  Rb1 {[%clk 0:00:11]} 89. Ka8 {[%clk 0:00:10]}  Kc7 {[%clk 0:00:11]} 0-1


[Site "https://www.chess.com"]

[Event "Titled Tuesday Blitz June 14 Late 2022"]
[White "Acosta, Pablo Ismael"]
[Black "Hnydiuk, Aleksander"]
[WhiteFideId "124311"]
[BlackFideId "1109057"]
[WhiteElo "2313"]
[BlackElo "2374"]
[Result "1-0"]
[Round "09"]
[TimeControl "180+1"]
[Date "2022.06.14"]
[WhiteClock "0:00:12"]
[BlackClock "0:00:13"]

1. d4 {[%clk 0:03:00]}  Nf6 {[%clk 0:02:59]} 2. c4 {[%clk 0:03:01]}  g6 {[%clk 0:02:59]} 3. Nc3 {[%clk 0:03:01]}  Bg7 {[%clk 0:03:00]} 4. e4 {[%clk 0:03:01]}  d6 {[%clk 0:03:00]} 5. h3 {[%clk 0:03:01]}  O-O {[%clk 0:03:00]} 6. Be3 {[%clk 0:03:02]}  e5 {[%clk 0:03:00]} 7. d5 {[%clk 0:03:02]}  a5 {[%clk 0:03:00]} 8. Nf3 {[%clk 0:03:01]}  Na6 {[%clk 0:03:00]} 9. Nd2 {[%clk 0:03:02]}  Nc5 {[%clk 0:03:00]} 10. g4 {[%clk 0:03:02]}  c6 {[%clk 0:03:00]} 11. Be2 {[%clk 0:02:59]}  cxd5 {[%clk 0:02:57]} 12. cxd5 {[%clk 0:02:55]}  a4 {[%clk 0:02:56]} 13. Bxc5 {[%clk 0:02:53]}  dxc5 {[%clk 0:02:57]} 14. Nc4 {[%clk 0:02:53]}  b5 {[%clk 0:02:54]} 15. Nxb5 {[%clk 0:02:45]}  Nxe4 {[%clk 0:02:53]} 16. Bf3 {[%clk 0:02:15]}  f5 {[%clk 0:02:47]} 17. d6 {[%clk 0:01:45]}  Be6 {[%clk 0:02:43]} 18. Nba3 {[%clk 0:01:42]}  Qh4 {[%clk 0:02:38]} 19. Qc2 {[%clk 0:01:27]}  Ng5 {[%clk 0:02:16]} 20. Bxa8 {[%clk 0:01:24]}  Rxa8 {[%clk 0:02:15]} 21. O-O-O {[%clk 0:01:21]}  e4 {[%clk 0:02:11]} 22. d7 {[%clk 0:01:15]}  Rd8 {[%clk 0:02:10]} 23. Qxa4 {[%clk 0:01:07]}  Nf3 {[%clk 0:02:07]} 24. Qc6 {[%clk 0:01:03]}  Qf6 {[%clk 0:02:06]} 25. gxf5 {[%clk 0:01:01]}  gxf5 {[%clk 0:02:04]} 26. Rd6 {[%clk 0:00:55]}  Ne5 {[%clk 0:01:47]} 27. Qb6 {[%clk 0:00:26]}  Qg5+ {[%clk 0:01:33]} 28. Nd2 {[%clk 0:00:22]}  Nd3+ {[%clk 0:01:27]} 29. Kb1 {[%clk 0:00:21]}  Bf7 {[%clk 0:01:15]} 30. Nac4 {[%clk 0:00:20]}  Nxf2 {[%clk 0:01:10]} 31. h4 {[%clk 0:00:20]}  Qe7 {[%clk 0:01:07]} 32. Rg1 {[%clk 0:00:20]}  Kf8 {[%clk 0:00:59]} 33. Qxc5 {[%clk 0:00:18]}  Nd3 {[%clk 0:00:47]} 34. Qxf5 {[%clk 0:00:17]}  e3 {[%clk 0:00:47]} 35. Rxg7 {[%clk 0:00:15]}  Kxg7 {[%clk 0:00:42]} 36. Rxd3 {[%clk 0:00:15]}  e2 {[%clk 0:00:36]} 37. Nf3 {[%clk 0:00:14]}  Bxc4 {[%clk 0:00:32]} 38. Qg4+ {[%clk 0:00:14]}  Kh8 {[%clk 0:00:30]} 39. Qd4+ {[%clk 0:00:12]}  Qg7 {[%clk 0:00:22]} 40. Qxc4 {[%clk 0:00:13]}  Qg1+ {[%clk 0:00:17]} 41. Nxg1 {[%clk 0:00:11]}  e1=Q+ {[%clk 0:00:17]} 42. Qc1 {[%clk 0:00:11]}  Qe4 {[%clk 0:00:15]} 43. Qc3+ {[%clk 0:00:12]}  Kg8 {[%clk 0:00:14]} 44. Kc1 {[%clk 0:00:12]}  Qf4+ {[%clk 0:00:13]} 45. Kc2 {[%clk 0:00:12]}  Qf2+ {[%clk 0:00:12]} 46. Rd2 {[%clk 0:00:11]}  Qxg1 {[%clk 0:00:12]} 47. Qc4+ {[%clk 0:00:10]}  Kh8 {[%clk 0:00:12]} 48. Qd4+ {[%clk 0:00:10]}  Qxd4 {[%clk 0:00:11]} 49. Rxd4 {[%clk 0:00:11]}  Kg7 {[%clk 0:00:11]} 50. b4 {[%clk 0:00:12]}  Kf6 {[%clk 0:00:12]} 51. b5 {[%clk 0:00:12]}  Ke5 {[%clk 0:00:13]} 52. Rd2 {[%clk 0:00:12]} 1-0


[Site "https://www.chess.com"]

[Event "Titled Tuesday Blitz June 14 Late 2022"]
[White "Bringas Gomez, Artai"]
[Black "Tanenbaum, Zachary"]
[WhiteFideId "24534064"]
[BlackFideId "2060850"]
[WhiteElo "1988"]
[BlackElo "2175"]
[Result "0-1"]
[Round "09"]
[TimeControl "180+1"]
[Date "2022.06.14"]
[WhiteClock "0:00:28"]
[BlackClock "0:00:30"]

1. e4 {[%clk 0:03:00]}  e5 {[%clk 0:02:59]} 2. Nf3 {[%clk 0:03:00]}  Nc6 {[%clk 0:02:59]} 3. c3 {[%clk 0:03:01]}  Nf6 {[%clk 0:02:58]} 4. d3 {[%clk 0:03:01]}  d5 {[%clk 0:02:57]} 5. Nbd2 {[%clk 0:03:02]}  Bc5 {[%clk 0:02:56]} 6. Be2 {[%clk 0:03:01]}  O-O {[%clk 0:02:56]} 7. O-O {[%clk 0:03:02]}  a5 {[%clk 0:02:52]} 8. a4 {[%clk 0:03:01]}  Qe7 {[%clk 0:02:51]} 9. Qc2 {[%clk 0:03:01]}  Rd8 {[%clk 0:02:51]} 10. Re1 {[%clk 0:02:55]}  h6 {[%clk 0:02:44]} 11. Nf1 {[%clk 0:02:52]}  Ng4 {[%clk 0:02:34]} 12. Ne3 {[%clk 0:02:51]}  d4 {[%clk 0:02:27]} 13. Nd5 {[%clk 0:02:40]}  Qd6 {[%clk 0:02:25]} 14. h3 {[%clk 0:02:37]}  Nf6 {[%clk 0:02:24]} 15. Nxf6+ {[%clk 0:02:26]}  Qxf6 {[%clk 0:02:25]} 16. cxd4 {[%clk 0:02:25]}  Bxd4 {[%clk 0:02:21]} 17. Nxd4 {[%clk 0:02:25]}  Nxd4 {[%clk 0:02:22]} 18. Qxc7 {[%clk 0:02:23]}  Rd7 {[%clk 0:01:54]} 19. Qc3 {[%clk 0:02:00]}  Rd6 {[%clk 0:01:53]} 20. Bd1 {[%clk 0:01:54]}  Qh4 {[%clk 0:01:38]} 21. Re3 {[%clk 0:01:53]}  Rg6 {[%clk 0:01:32]} 22. Kf1 {[%clk 0:01:22]}  Rf6 {[%clk 0:01:22]} 23. Qe1 {[%clk 0:01:18]}  Qf4 {[%clk 0:01:18]} 24. Kg1 {[%clk 0:01:15]}  Qh4 {[%clk 0:01:06]} 25. Bd2 {[%clk 0:01:13]}  Rg6 {[%clk 0:01:04]} 26. Rg3 {[%clk 0:01:08]}  Raa6 {[%clk 0:00:59]} 27. Rc1 {[%clk 0:01:07]}  Bxh3 {[%clk 0:00:51]} 28. gxh3 {[%clk 0:00:54]}  Qxh3 {[%clk 0:00:52]} 29. Bg4 {[%clk 0:00:47]}  Rxg4 {[%clk 0:00:47]} 30. Qe3 {[%clk 0:00:29]}  Rag6 {[%clk 0:00:41]} 31. Be1 {[%clk 0:00:29]}  Rh4 {[%clk 0:00:30]} 32. Rxg6 {[%clk 0:00:28]}  Qh1# {[%clk 0:00:30]} 0-1


[Site "https://www.chess.com"]